fUST/lending_fUST_20240119
["ID","MTS","AMOUNT","RATE_DAILY","PERIOD"]
[312128119,1705657847091,-479776.20120835,0.000319,2]
[312128120,1705657847111,-2220.3689115,0.000319,2]
[312128147,1705658068172,24900.0,0.00016222,2]
[312128153,1705658364886,1694.2090233,0.00016213,2]
[312128154,1705658504226,2002.34889326,0.0003,120]
[312128155,1705658504921,24900.0,0.00016208,2]
[312128158,1705658713277,1145.3149296,0.00012912,2]
[312128159,1705658827125,-607.13204194,0.00016681,2]
[312128160,1705658827153,-154.87609912,0.00016682,2]
[312128161,1705658827188,-323.39599469,0.00016683,2]
[312128162,1705658827226,-770.37807599,0.00016683,2]
[312128165,1705658894794,226.6103945,0.00015494,2]
[312128166,1705658945135,-178.65716453,0.00016679,2]
[312128167,1705658945162,-230.71907883,0.00016679,2]
[312128168,1705658945198,-4959.16437663,0.00016679,2]
[312128169,1705658945229,-1589.24944099,0.0001668,2]
[312128170,1705658945261,-4042.41322367,0.000167,2]
[312128171,1705658945507,-170.79924496,0.00017216,2]
[312128172,1705658945549,-555.04009963,0.00017216,2]
[312128173,1705658945596,-7088.24982685,0.00017216,2]
[312128174,1705658945846,-3728.32259616,0.00017216,2]
[312128175,1705658945891,-154.92253873,0.00017216,2]
[312128176,1705658945918,-435.62017009,0.00017216,2]
[312128177,1705658945946,-323.93980017,0.00017216,2]
[312128178,1705658945981,-606.8265066,0.00017216,2]
[312128179,1705658946016,-282.85168191,0.00017216,2]
[312128180,1705658946049,-296.77643472,0.00017217,2]
[312128181,1705658946089,-64018.18240333,0.00017218,2]
[312128182,1705658946125,-873.86173983,0.00017235,2]
[312128183,1705658946166,-274.15864809,0.00018,2]
[312128184,1705658946203,-200.0,0.00018368,2]
[312128185,1705658946240,-163.683533,0.00019178,2]
[312128186,1705658946273,-2996.33579383,0.0002,2]
[312128187,1705658946310,-280.0,0.00020205,2]
[312128188,1705658946350,-232.86268792,0.00021,2]
[312128189,1705658946386,-8299.15465297,0.00021,2]
[312128190,1705658946430,-167.391962,0.00021918,2]
[312128191,1705658946468,-425.69649895,0.00022,2]
[312128192,1705658946511,-391.0,0.00022226,7]
[312128193,1705658946549,-167.391962,0.00022559,2]
[312128194,1705658946585,-823.86653966,0.000227,2]
[312128195,1705658946625,-167.391962,0.000232,2]
[312128196,1705658946653,-167.391962,0.00023841,2]
[312128197,1705658946692,-338.23929914,0.00024,2]
[312128198,1705658946731,-200.0,0.00024448,7]
[312128199,1705658946768,-348.0,0.00024448,7]
[312128200,1705658946793,-101.30951603,0.00024482,2]
[312128201,1705658946848,-66.08244597,0.00024482,2]
[312128202,1705658949112,-460.17205447,0.0002495,5]
[312128203,1705658949778,24900.0,0.00016222,2]
[312128204,1705658951317,-37.83626692,0.0002495,5]
[312128205,1705658951351,-272.51649233,0.00025,2]
[312128358,1705659056887,-539.48350767,0.00025,2]
[312128359,1705659056923,-620.00000441,0.000264,2]
[312128360,1705659056936,-620.00000022,0.0002772,2]
[312128361,1705659056954,-6542.05161315,0.00028,2]
[312128362,1705659056975,-224.05287613,0.00028,7]
[312128363,1705659056999,-873.86173983,0.00028476,2]
[312128364,1705659057025,-1589.24944099,0.00028477,2]
[312128365,1705659057045,-2996.33579383,0.00028478,2]
[312128366,1705659057065,-823.86653966,0.00028478,2]
[312128367,1705659057082,-2214.87326071,0.00028479,2]
[312128368,1705659057109,-11772.26462134,0.00028749,2]
[312128369,1705659057131,-185.30958395,0.000289,2]
[312128371,1705659057160,-155.0,0.0002898,2]
[312128372,1705659057182,-154.87609912,0.00029,2]
[312128373,1705659057203,-832.47642224,0.00029,2]
[312128374,1705659057225,-2036.31691242,0.00029,2]
[312128375,1705659057252,-1879.41245692,0.00029,2]
[312128376,1705659057274,-620.00000001,0.00029106,2]
[312128377,1705659057292,-2095.9872071,0.000298,2]
[312128378,1705659057307,-154.87609912,0.0002985,2]
[312128379,1705659057335,-10426.79,0.00029858,3]
[312128380,1705659057350,-50000.0,0.00029868,2]
[312128381,1705659057368,-152.07628289,0.00029898,2]
[312128382,1705659057387,-406.08420108,0.000299,2]
[312128383,1705659057405,-12512.14,0.0002997,3]
[312128384,1705659057434,-230.71907883,0.00029978,2]
[312128385,1705659057466,-178.65716453,0.00029978,2]
[312128386,1705659057481,-50000.0,0.0002998,4]
[312128387,1705659057504,-3400.58,0.00029999,2]
[312128388,1705659057520,-3400.58,0.00029999,2]
[312128389,1705659057547,-3400.58,0.00029999,2]
[312128390,1705659057568,-3400.58,0.00029999,2]
[312128391,1705659057585,-3400.58,0.00029999,2]
[312128392,1705659057606,-3400.58,0.00029999,2]
[312128393,1705659057623,-3400.58,0.00029999,2]
[312128394,1705659057856,-3400.58,0.00029999,2]
[312128395,1705659057888,-3400.58,0.00029999,2]
[312128396,1705659057914,-3400.58,0.00029999,2]
[312128397,1705659057925,-203.57851541,0.00029999,4]
[312128398,1705659057951,-521.80015784,0.00029999,4]
[312128399,1705659057975,-375.85133762,0.00029999,4]
[312128400,1705659058007,-519.19870923,0.00029999,4]
[312128401,1705659058031,-500.24201437,0.00029999,2]
[312128402,1705659058050,-500.0,0.00029999,2]
[312128403,1705659058069,-500.0,0.00029999,2]
[312128404,1705659058089,-225.38445172,0.00029999,2]
[312128405,1705659058108,-500.0,0.00029999,2]
[312128406,1705659058129,-445.16979768,0.00029999,2]
[312128407,1705659058147,-500.0,0.00029999,2]
[312128408,1705659058170,-500.0,0.00029999,2]
[312128409,1705659058201,-500.0,0.00029999,2]
[312128410,1705659058223,-500.0,0.00029999,2]
[312128411,1705659058238,-500.0,0.00029999,2]
[312128412,1705659058256,-426.96512022,0.00029999,2]
[312128413,1705659058279,-630.30911924,0.00029999,2]
[312128414,1705659058306,-500.0,0.00029999,2]
[312128415,1705659058332,-585.70900558,0.00029999,2]
[312128416,1705659058358,-500.0,0.00029999,2]
[312128417,1705659058370,-458.82253408,0.0003,3]
[312128418,1705659058398,-4999.98,0.0003,2]
[312128419,1705659058419,-5000.0,0.0003,2]
[312128420,1705659058438,-5000.0,0.0003,2]
[312128421,1705659058460,-3160.35,0.0003,2]
[312128422,1705659058477,-368.96929126,0.0003,6]
[312128423,1705659058500,-464.33375401,0.0003,2]
[312128424,1705659058530,-157.68168775,0.0003,4]
[312128425,1705659058552,-154.87609912,0.0003,2]
[312128426,1705659058576,-166.73517574,0.0003,2]
[312128427,1705659058591,-688.01285151,0.0003,4]
[312128428,1705659058616,-432.8970436,0.0003,4]
[312128429,1705659058641,-30319.07639528,0.0003,2]
[312128430,1705659058668,-2192.42916619,0.0003,2]
[312128431,1705659058690,-30479.54764278,0.0003,3]
[312128432,1705659058710,-2318.75235601,0.0003,4]
[312128433,1705659058730,-193060.58760674,0.0003,30]
[312128434,1705659058862,-10202.84952288,0.0003,30]
[312128435,1705659162562,154.98450155,0.00011621,2]
[312128436,1705659173849,9845.01549845,0.00016,2]
[312128437,1705659173903,104545.87462432,0.00016,2]
[312128440,1705660025309,-154.87609912,0.00018799,2]
[312128441,1705660025355,-71.79866636,0.000188,2]
[312128442,1705660054110,-86.31821352,0.000188,2]
[312128443,1705660054148,-300.0,0.0002,2]
[312128444,1705660054180,-164.1685024,0.00025921,2]
[312128445,1705660054214,-24900.0,0.00025951,2]
[312128446,1705660054245,-155.49562102,0.00027294,2]
[312128447,1705660054288,-208.82058628,0.00027294,2]
[312128448,1705660054321,-549.47321105,0.00027294,2]
[312128449,1705660054374,-170.72767926,0.00027294,2]
[312128450,1705660054405,-177.15191446,0.00027294,2]
[312128451,1705660054450,-155.23850692,0.00027294,2]
[312128452,1705660054486,-300.68115955,0.00027295,2]
[312128453,1705660054518,-7059.20846776,0.00027295,2]
[312128454,1705660054554,-2551.51483743,0.000279,2]
[312128455,1705660054596,-154.87609912,0.00029,2]
[312128456,1705660054633,-1879.41245692,0.00029,2]
[312128457,1705660054666,-155.0,0.00029,2]
[312128458,1705660054697,-6865.61602426,0.00029698,2]
[312128459,1705660054727,-397.82791057,0.00029988,2]
[312128460,1705660054762,-1401.73610907,0.00029988,2]
[312128461,1705660093554,970.2026327,0.00016,2]
[312128462,1705660095187,1353.4803625,0.00016,5]
[312128463,1705660145098,-3006.30963357,0.00027498,2]
[312128464,1705660145126,-4719.78899734,0.00027499,2]
[312128465,1705660145175,-1022.18656909,0.000275,2]
[312128466,1705660209286,2029.7973673,0.00016,2]
[312128467,1705660209342,7953.7057719,0.00016,2]
[312128504,1705660233163,-1589.24944099,0.00027499,2]
[312128505,1705660233180,-2193.27490532,0.000275,2]
[312128506,1705660233198,-290.08228321,0.00028,2]
[312128507,1705660233222,-278.09121753,0.00029,2]
[312128508,1705660233247,-1879.41245692,0.00029,2]
[312128509,1705660233269,-302.66994715,0.00029088,2]
[312128511,1705660233288,-5772.8,0.0002989,3]
[312128512,1705660233308,-1118.71561509,0.00029899,2]
[312128514,1705660233321,-39535.53575137,0.000299,2]
[312128600,1705660244081,-4810.67,0.0002989,3]
[312128601,1705660244098,-500.0,0.00029899,2]
[312128602,1705660244119,-500.0,0.00029899,2]
[312128603,1705660244142,-618.52728196,0.00029899,2]
[312128604,1705660244164,-508.30271982,0.00029899,2]
[312128605,1705660244181,-500.0,0.00029899,2]
[312128606,1705660244198,-500.0,0.00029899,2]
[312128607,1705660244212,-500.0,0.00029899,2]
[312128608,1705660244228,-500.0,0.00029899,2]
[312128609,1705660244244,-2054.81589729,0.000299,2]
[312128610,1705660244272,-624.03659385,0.000299,2]
[312128611,1705660245565,-83958.93959709,0.000299,2]
[312128612,1705660245593,-10202.84952288,0.000299,2]
[312128613,1705660245618,-13692.64921717,0.000299,2]
[312128614,1705660245645,-5368.50329213,0.000299,2]
[312128615,1705660245680,-253.03416128,0.000299,2]
[312128616,1705660245698,-301.40790876,0.000299,2]
[312128622,1705660246207,-1000.1131535,0.00029898,2]
[312128623,1705660246232,-879.29930342,0.00029898,2]
[312128624,1705660246253,-12207.86160033,0.000299,2]
[312128650,1705660249173,-291.29586169,0.00028403,2]
[312128651,1705660249188,-20613.87134607,0.000299,2]
[312128681,1705661225100,-452.47030798,0.0002638,2]
[312128682,1705661225127,-2642.82763636,0.0002638,7]
[312128683,1705661243173,-2707.42562247,0.00026379,5]
[312128684,1705661243199,-294.70821043,0.00026379,2]
[312128685,1705661243225,-143.6296121,0.0002638,7]
[312128686,1705661349138,-452.47030798,0.00026383,2]
[312128687,1705661349167,-2382.26644393,0.00026384,2]
[312128688,1705661349193,-294.70821043,0.0002665,2]
[312128689,1705661349222,-1287.1835903,0.0002665,5]
[312128690,1705661349249,-2858.15966308,0.0002665,7]
[312128691,1705661349276,-13764.81691901,0.00026652,2]
[312128726,1705661432551,-994.60540123,0.00026458,2]
[312128770,1705661438686,-3058.20900167,0.00026458,2]
[312128772,1705661438700,-549.40930506,0.00026651,2]
[312128774,1705661438713,-254.25203181,0.00027263,2]
[312128776,1705661438727,-57.42703255,0.00027264,2]
[312128778,1705661438742,-258.44456824,0.00027264,2]
[312128780,1705661438756,-1060.17221213,0.00027265,2]
[312128936,1705661441673,-2353.6978861,0.00027265,2]
[312129035,1705661443753,-46586.12990177,0.00027265,2]
[312129036,1705661443763,-155.0,0.00027503,2]
[312129037,1705661443774,-1209.05854419,0.000278,2]
[312129366,1705662568118,-849.76694483,0.0002425,2]
[312129367,1705662568140,-903.13044819,0.00024251,2]
[312129368,1705662568164,-166.666667,0.00024252,2]
[312129369,1705662568185,-163.683533,0.00024508,2]
[312129370,1705662568208,-337.921481,0.00024578,2]
[312129371,1705662568230,-166.10882689,0.0002502,2]
[312129372,1705662568253,-498.00832139,0.00025142,5]
[312129373,1705662568277,-9718.98832929,0.00025164,2]
[312129381,1705662631703,-11956.61989511,0.00025164,2]
[312129382,1705662631715,-10295.56996507,0.00025164,2]
[312129383,1705662631727,-1824.95710943,0.00025164,2]
[312129384,1705662631740,-1429.35853322,0.00025165,2]
[312129385,1705662631755,-168.59532358,0.00025651,2]
[312129386,1705662631768,-202.971681,0.00025764,2]
[312129387,1705662631781,-293.76685143,0.00026467,2]
[312129388,1705662631792,-438.40529251,0.00026467,2]
[312129389,1705662631803,-7174.72,0.00026468,3]
[312129391,1705662631820,-13681.72,0.00026468,3]
[312129393,1705662631832,-11401.43,0.00026468,3]
[312129394,1705662631843,-39271.75734362,0.00026478,2]
[312129397,1705662631862,-5348.9909938,0.00026478,2]
[312129500,1705662637783,-9501.19,0.00026468,3]
[312129502,1705662637794,-5379.25166258,0.00026478,2]
[312129504,1705662637805,-50000.0,0.00026478,2]
[312129506,1705662637816,-40791.21256159,0.00026478,2]
[312129515,1705662637906,-9208.78743841,0.00026478,2]
[312129518,1705662637918,-176.046672,0.00027297,2]
[312129521,1705662637929,-155.0,0.00027397,2]
[312129524,1705662637940,-500.0,0.00027443,2]
[312129526,1705662637951,-500.0,0.00027443,2]
[312129528,1705662637963,-500.0,0.00027443,2]
[312129529,1705662637973,-500.0,0.00027443,2]
[312129531,1705662637985,-500.0,0.00027443,2]
[312129533,1705662637997,-500.0,0.00027443,2]
[312129535,1705662638007,-618.52728196,0.00027443,2]
[312129537,1705662638019,-508.30271982,0.00027443,2]
[312129539,1705662638029,-229.41126704,0.00027444,3]
[312129541,1705662638041,-50000.0,0.00027444,5]
[312129543,1705662638053,-500.0,0.00027444,2]
[312129545,1705662638065,-500.0,0.00027444,2]
[312129547,1705662638077,-400.826104,0.00027444,2]
[312129548,1705662638088,-400.826104,0.00027444,2]
[312129551,1705662638103,-42059.08823704,0.000275,2]
[312129553,1705662638115,-154.87609912,0.000278,2]
[312129554,1705662638128,-261.40839953,0.000278,2]
[312129556,1705662638140,-296.392692,0.000278,2]
[312129559,1705662638151,-296.392692,0.000278,2]
[312129560,1705662638165,-479.869124,0.000278,2]
[312129562,1705662638176,-479.869124,0.000278,2]
[312129565,1705662638187,-207.3160726,0.000278,2]
[312129566,1705662638198,-500.0,0.000278,2]
[312129569,1705662638213,-500.0,0.000278,2]
[312129570,1705662638226,-400.826104,0.000278,2]
[312129572,1705662638239,-400.826104,0.000278,2]
[312129574,1705662638252,-176.046672,0.00028131,2]
[312129576,1705662638266,-260.59423718,0.00028491,2]
[312129578,1705662638277,-3963.07176261,0.00028492,2]
[312129579,1705662638290,-15894.15433298,0.00028501,2]
[312129581,1705662638302,-635.74007222,0.00028501,2]
[312129582,1705662638316,-272.098945,0.00028501,2]
[312129583,1705662638327,-3006.30963357,0.00028502,2]
[312129584,1705662638338,-151.0,0.00028503,2]
[312129585,1705662638348,-151.0,0.00028503,2]
[312129586,1705662638360,-151.0,0.00028503,2]
[312129587,1705662638373,-561.09100671,0.00028803,2]
[312129588,1705662638384,-176.046672,0.00028966,2]
[312129589,1705662638395,-1879.41245692,0.00029,2]
[312129590,1705662638406,-155.18268787,0.00029,2]
[312129591,1705662638419,-622.0918291,0.00029033,2]
[312129592,1705662638430,-200.0,0.00029114,15]
[312129593,1705662638441,-11656.71030754,0.000295,30]
[312129594,1705662638452,-176.046672,0.000298,2]
[312129595,1705662638465,-400.826104,0.00029888,2]
[312129596,1705662638478,-400.826104,0.00029888,2]
[312129597,1705662638489,-2072.61065155,0.00029888,2]
[312129598,1705662638500,-450.30552196,0.00029891,2]
[312129599,1705662638511,-162.97782864,0.00029898,2]
[312129600,1705662638523,-460.17684779,0.00029898,2]
[312129601,1705662638536,-616.51710907,0.00029898,2]
[312129602,1705662638548,-500.0,0.00029898,2]
[312129603,1705662638560,-500.0,0.00029898,2]
[312129604,1705662638571,-375.44465298,0.00029899,2]
[312129605,1705662638583,-223.62863908,0.00029899,4]
[312129606,1705662638595,-222.51373253,0.00029899,4]
[312129607,1705662638606,-161.07914469,0.00029899,4]
[312129608,1705662638618,-6179.69075145,0.000299,2]
[312129619,1705662640772,-200.0,0.00029125,15]
[312129620,1705662640784,-540.994715,0.000299,2]
[312129621,1705662640799,-2337.63320652,0.000299,2]
[312129682,1705662645820,-12047.82944182,0.000299,2]
[312129686,1705663118028,6229.0,0.00015,2]
[312129687,1705663151252,10295.56996507,0.00015,2]
[312129688,1705663169280,480.70210415,0.00015,2]
[312129690,1705663513134,12867.0,0.00029,30]
[312129692,1705663613270,-242.99577859,0.00017969,2]
[312129693,1705663613293,-67.37828329,0.0001797,2]
[312129694,1705663653101,-154.86062544,0.00017967,2]
[312129695,1705663653124,-305.39596704,0.00017968,2]
[312129702,1705663774133,-154.86062544,0.00026663,2]
[312129703,1705663774157,-1644.16378549,0.00026664,2]
[312129721,1705663831919,-322.95530787,0.00026663,2]
[312129723,1705663831931,-1379.98181705,0.00026664,2]
[312129725,1705663831944,-444.97529238,0.00026664,2]
[312129727,1705663831955,-154.86062544,0.00026664,2]
[312129739,1705663832079,-95.91699296,0.00026664,2]
[312129741,1705663832090,-1241.8968664,0.00026665,2]
[312129743,1705663832101,-168.96074,0.00026667,2]
[312129745,1705663832117,-177.38434734,0.00026726,2]
[312129748,1705663832131,-443.606576,0.00026726,2]
[312129750,1705663832143,-791.20419317,0.000269,2]
[312129881,1705663840981,-302.87266722,0.000269,2]
[312129894,1705664836102,-300.80442978,0.000247,2]
[312129895,1705664836126,-2707.42562247,0.00024799,5]
[312129896,1705664836149,-137.52111462,0.000248,2]
[312129897,1705664957117,-291.29586169,0.000248,2]
[312129898,1705664971128,-562.41594044,0.000248,2]
[312129899,1705664971152,-154.86062544,0.000248,2]
[312129900,1705664971178,-1472.01199016,0.000248,2]
[312129907,1705665032120,-352.94511927,0.000248,2]
[312129908,1705665032132,-166.30411051,0.000248,2]
[312129909,1705665032143,-3128.22508425,0.00026899,2]
[312129910,1705665032154,-562.89914058,0.00027397,2]
[312129911,1705665032166,-500.0,0.00027397,2]
[312129912,1705665032177,-500.0,0.00027397,2]
[312129913,1705665032188,-231.31571371,0.00027397,2]
[312129914,1705665032199,-500.0,0.00027671,2]
[312129915,1705665032210,-501.48231904,0.00027671,2]
[312129917,1705665032221,-222.959631,0.00027702,2]
[312129918,1705665032232,-163.683533,0.00027898,2]
[312129919,1705665032243,-504.49546555,0.00027945,2]
[312129920,1705665032255,-620.04954617,0.00028062,2]
[312129921,1705665032269,-153.034734,0.00028493,2]
[312129922,1705665032280,-153.0,0.00028493,2]
[312129923,1705665032291,-153.0,0.00028493,2]
[312129924,1705665032302,-155.0,0.000287,2]
[312129925,1705665032312,-397.8658531,0.000288,2]
[312129926,1705665032323,-154.86062544,0.00028998,10]
[312129927,1705665032333,-261.40839953,0.00029,2]
[312129928,1705665032344,-12685.83422438,0.00029,7]
[312129929,1705665032355,-305.51246618,0.00029,2]
[312129930,1705665032366,-1879.41245692,0.00029,2]
[312129931,1705665032378,-2132.99730345,0.000293,2]
[312129932,1705665032389,-401.679406,0.00029315,2]
[312129933,1705665032400,-327.9954237,0.00029315,2]
[312129934,1705665032411,-457.5024888,0.00029315,2]
[312129935,1705665032421,-199.0432224,0.00029315,2]
[312129936,1705665032431,-417.7674032,0.00029315,2]
[312129937,1705665032444,-153.0,0.00029315,2]
[312129938,1705665032456,-153.0,0.00029315,2]
[312129939,1705665032467,-360.4535173,0.00029315,2]
[312129940,1705665032478,-620.00247731,0.00029465,2]
[312129941,1705665032489,-200.0,0.00029589,15]
[312129942,1705665032501,-6318.52553758,0.000296,2]
[312129943,1705665032511,-7399.83,0.00029679,3]
[312129944,1705665032522,-11720.92,0.00029688,2]
[312129945,1705665032532,-500.0,0.00029688,2]
[312129946,1705665032544,-500.0,0.00029688,2]
[312129947,1705665032555,-500.0,0.00029688,2]
[312129948,1705665032566,-500.0,0.00029688,2]
[312129949,1705665032576,-2144.68,0.00029688,2]
[312129950,1705665032587,-500.0,0.00029689,2]
[312129951,1705665032599,-355.82780142,0.00029689,2]
[312129952,1705665032610,-500.0,0.00029689,2]
[312129953,1705665032620,-500.0,0.00029689,2]
[312129954,1705665032632,-500.0,0.00029689,2]
[312129955,1705665032644,-500.0,0.00029689,2]
[312129956,1705665032655,-500.0,0.00029689,2]
[312129957,1705665032665,-500.0,0.00029689,2]
[312129958,1705665032676,-169.51081011,0.00029689,2]
[312129959,1705665032686,-504.5730539,0.00029689,2]
[312129960,1705665032701,-405.15774271,0.00029689,2]
[312129961,1705665032712,-500.0,0.00029689,2]
[312129962,1705665032723,-500.0,0.00029689,2]
[312129963,1705665032735,-503.86239034,0.00029689,2]
[312129964,1705665032746,-500.0,0.00029689,2]
[312129965,1705665032756,-482.11039133,0.00029689,2]
[312129966,1705665032767,-500.0,0.00029689,2]
[312129967,1705665032777,-500.0,0.00029689,2]
[312129968,1705665032788,-206.29199228,0.00029689,2]
[312129969,1705665032798,-500.38761768,0.00029689,2]
[312129970,1705665032809,-500.0,0.00029689,2]
[312129971,1705665032820,-423.73578706,0.00029689,2]
[312129972,1705665032834,-506.29333055,0.00029689,2]
[312129973,1705665032845,-500.0,0.00029689,2]
[312129974,1705665032856,-255.64911985,0.00029689,2]
[312129975,1705665032868,-500.0,0.00029689,2]
[312129976,1705665032880,-500.0,0.00029689,2]
[312129977,1705665032890,-505.9027438,0.00029689,2]
[312129978,1705665032900,-500.0,0.00029689,2]
[312129979,1705665032910,-500.0,0.00029689,2]
[312129980,1705665032921,-500.0,0.00029689,2]
[312129981,1705665032931,-500.36498444,0.00029689,2]
[312129982,1705665032943,-500.67574723,0.00029689,2]
[312129983,1705665032953,-579.13966273,0.00029689,2]
[312129984,1705665032964,-500.0,0.00029689,2]
[312129985,1705665032974,-500.38185685,0.00029689,2]
[312129986,1705665032985,-364.79966267,0.00029689,2]
[312129987,1705665032996,-512.34032242,0.00029689,2]
[312129988,1705665033007,-531.81,0.00029689,2]
[312129989,1705665033019,-8879.8,0.00029689,3]
[312129990,1705665033032,-1794.75854909,0.00029698,5]
[312129991,1705665033043,-294.70821043,0.00029699,2]
[312129992,1705665033054,-190.19169914,0.00029699,2]
[312129993,1705665033065,-500.0,0.00029699,2]
[312129994,1705665033076,-420.09972338,0.00029699,2]
[312129995,1705665033086,-157.76911621,0.00029699,2]
[312129996,1705665033097,-506.61140371,0.00029699,2]
[312129997,1705665033109,-92.79008649,0.00029699,2]
[312130288,1705665041192,-500.0,0.00029688,2]
[312130290,1705665041203,-500.0,0.00029689,2]
[312130292,1705665041214,-500.0,0.00029689,2]
[312130294,1705665041224,-407.20991351,0.00029699,2]
[312130296,1705665041235,-110.08517535,0.00029699,2]
[312130444,1705665043182,-3735.52203175,0.0002969,3]
[312131572,1705666232290,-272.51649233,0.00025,2]
[312131573,1705666232303,-328.4835946,0.00025202,2]
[312131574,1705666232315,-316.05161098,0.00025202,5]
[312131575,1705666232327,-334.07937427,0.000274,2]
[312131576,1705666232339,-222.959631,0.00027497,2]
[312131577,1705666232351,-660.8219445,0.00027589,2]
[312131578,1705666232364,-154.87609912,0.00028002,10]
[312131579,1705666232482,-24900.0,0.00028004,2]
[312131580,1705666232494,-188.7220274,0.00028102,3]
[312131581,1705666232506,-291.29586169,0.00028202,2]
[312131582,1705666232520,-498.00832139,0.00028202,5]
[312131583,1705666232531,-306.0,0.00028493,2]
[312131584,1705666232543,-155.0,0.00028689,2]
[312131585,1705666232554,-255.22923267,0.00028701,3]
[312131586,1705666232566,-302.66994715,0.00028794,2]
[312131587,1705666232577,-434.3626415,0.00028878,2]
[312131588,1705666232589,-1879.41245692,0.00029,2]
[312131589,1705666232602,-154.87609912,0.00029,2]
[312131590,1705666232615,-306.0,0.00029178,2]
[312131591,1705666232626,-153.0,0.00029178,2]
[312131592,1705666232638,-153.0,0.00029178,2]
[312131593,1705666232649,-153.0,0.00029178,2]
[312131594,1705666232661,-306.5914831,0.00029315,2]
[312131595,1705666232672,-306.1965757,0.00029315,2]
[312131596,1705666232684,-153.0,0.00029315,2]
[312131597,1705666232696,-153.0,0.00029315,2]
[312131598,1705666232708,-153.0,0.00029315,2]
[312131599,1705666232721,-199.0432224,0.000294,2]
[312131600,1705666232733,-3849.96,0.00029578,3]
[312131601,1705666232744,-4902.28,0.00029578,3]
[312131602,1705666232755,-500.0,0.00029587,2]
[312131603,1705666232767,-27997.98900776,0.00029588,2]
[312140762,1705667211113,-310.37406188,0.00023382,2]
[312140763,1705667248092,-242.99577859,0.00023381,2]
[312140764,1705667248116,-217.18105975,0.00023382,2]
[312140765,1705667350081,-178.65716453,0.0002338,2]
[312140766,1705667350104,-8757.15684933,0.00023381,2]
[312140767,1705667350127,-1824.95710943,0.00023382,2]
[312140768,1705667350152,-620.37329655,0.00023382,2]
[312140769,1705667350175,-1740.08077845,0.00023384,2]
[312140770,1705667350199,-605.18308629,0.00023385,2]
[312140771,1705667350222,-976.79905731,0.00023398,2]
[312140772,1705667350246,-17603.93121064,0.00023879,2]
[312140773,1705667361112,-230.71907883,0.00023379,2]
[312140774,1705667361137,-7296.06878936,0.00023879,2]
[312140775,1705667361159,-4011.58774012,0.00024,2]
[312140776,1705667361181,-379.1597887,0.00024227,2]
[312140777,1705667361205,-242.99577859,0.00024998,2]
[312140778,1705667361228,-154.87609912,0.0002513,2]
[312140779,1705667361250,-1045.65136347,0.00025131,2]
[312140780,1705667361271,-163.683533,0.00025132,2]
[312140781,1705667361294,-1679.34047184,0.0002555,3]
[312140782,1705667361317,-200.0,0.00025736,7]
[312140783,1705667361345,-156.05990121,0.00025868,2]
[312140784,1705667361367,-523.99766702,0.00025989,2]
[312140785,1705667361390,-2109.78779673,0.0002599,3]
[312140786,1705667363112,-18731.47220327,0.0002599,3]
[312140787,1705667363135,-1882.3991428,0.0002599,3]
[312140788,1705667372149,-1824.95710943,0.00023382,2]
[312140789,1705667372175,-432.76747902,0.00023382,2]
[312140849,1705667432531,-15.25437276,0.00023382,2]
[312140850,1705667432542,-154.87609912,0.0002586,2]
[312140852,1705667432553,-4011.58774012,0.00025971,2]
[312140867,1705667432564,-2042.96137226,0.00025989,2]
[312140871,1705667432688,-178.65716453,0.00025989,2]
[312140874,1705667432700,-1792.97309243,0.0002599,2]
[312140877,1705667432711,-243.46037996,0.00025998,2]
[312140879,1705667432723,-230.71907883,0.00025998,2]
[312140881,1705667432734,-155.29459403,0.00025998,2]
[312140883,1705667432747,-219.93064841,0.00025998,2]
[312140885,1705667432759,-1252.74537918,0.00025998,2]
[312140887,1705667432772,-1693.74494191,0.00025998,2]
[312140889,1705667432783,-876.838464,0.00025998,2]
[312140891,1705667432795,-155.58298179,0.00025998,2]